Cogmind - Beta 16 @@@ ROGUE MODE // 2026.01.31 @ 02:02:41 Player: jat Result: Destroyed by B-36 Bruiser with Hammer Performance ------------- Evolutions (2) 1000 Regions Visited (4) 800 Robots Destroyed (36) 180 Value Destroyed (1096) 1096 Prototype IDs (3) 60 Alien Tech Used (0) 0 Bonus (233) 233 TOTAL SCORE: 3369 Bonus ------- Follower Combat Kills 33 Entered Garrisons 200 Cogmind --------- Core Integrity 0/550 Matter 270/300 Energy 100/100 System Corruption 6% Temperature Cool (1) Movement Flying (40) Location -8/Garrison Parts ------- > --- POWER (2) -------- (None) > --- PROPULSION (3) --- Flight Unit > --- UTILITY (3) ------ (None) > --- WEAPON (3) ------- (None) > --- INVENTORY (5) ---- Relay Coupler [Swarmer] (26) Relay Coupler [Brawler] (23) Relay Coupler [Specialist] (19) Particle Gun Peak State ------------ > --- POWER ------------ Heavy Ion Engine Light Deuterium Engine > --- PROPULSION ------- Compact Wheel Compact Wheel Compact Wheel > --- UTILITY ---------- Advanced Visual Processing Unit Improved Sensor Array Terrain Scanner > --- WEAPON ----------- Shock Rifle Autogun Autogun > --- INVENTORY -------- Weight Redist. System Light Armor Plating Autogun Autogun Datajack [Rating: 23] Favorites ----------- Power Heavy Ion Engine Engine Heavy Ion Engine Power Core Light Nuclear Core Propulsion Compact Wheel Wheel Compact Wheel Flight Unit Flight Unit Utility Advanced Visual Processing Unit Device Weight Redist. System Processor Advanced Visual Processing Unit Protection Light Armor Plating Weapon Autogun Energy Gun Particle Gun Ballistic Gun Autogun Special Melee Weapon Datajack Build | -11 -10 -9 -8 -8 ------- Run | Yrd Mat Mat Mat Gar Slots Evolved 4 | . . 2 2 . Power 1 | . . . 1 . Propulsion 1 | . . . 1 . Utility 1 | . . 1 . . Weapon 1 | . . 1 . . Parts Attached 34 | 6 7 4 7 10 Power 6 | 1 1 . 1 3 Engine 5 | 1 1 . 1 2 Core 1 | . . . . 1 Reactor . | . . . . . Propulsion 8 | 3 2 . 1 2 Treads . | . . . . . Leg . | . . . . . Wheel 6 | 3 2 . 1 . Hover . | . . . . . Flight 2 | . . . . 2 Utility 8 | . 2 2 3 1 Device 5 | . 1 1 2 1 Storage . | . . . . . Processor 2 | . 1 . 1 . Hackware . | . . . . . Protection 1 | . . 1 . . Artifact . | . . . . . Weapon 12 | 2 2 2 2 4 Energy Gun 3 | . . . 1 2 Energy Cannon . | . . . . . Ballistic Gun 8 | 2 2 1 1 2 Ballistic Cannon . | . . . . . Launcher . | . . . . . Special Weapon . | . . . . . Impact Weapon . | . . . . . Slashing Weapon . | . . . . . Piercing Weapon . | . . . . . Special Melee Weapon 1 | . . 1 . . Unidentified Prototypes 1 | . 1 . . . Parts Lost 22 | . . . 3 19 Power 4 | . . . 1 3 Propulsion 4 | . . . . 4 Utility 6 | . . . 1 5 Weapon 8 | . . . 1 7 Highest Loss Streak 8 | . . . 3 8 To Critical Strikes . | . . . . . Average Backups 4 | 1 3 4 4 3 Power . | 1 1 1 . . Propulsion . | . . 1 . . Utility 1 | . . . 1 3 Weapon . | . 1 1 1 . Tool/Special . | . . . . . Unused Backups 4 | . . 1 . 3 Power 1 | . . 1 . . Propulsion . | . . . . . Utility 3 | . . . . 3 Weapon . | . . . . . Tool/Special . | . . . . . Average Slot Usage (%) 80 | . 89 98 93 53 Engine 9 | . 14 11 15 3 Core 1 | . . . . 4 Wheel 20 | . 28 22 26 11 Device 10 | . 12 13 13 6 Processor 8 | . 5 11 9 8 Protection 3 | . . 7 1 3 Energy Gun 2 | . . . 3 4 Ballistic Gun 21 | . 28 32 23 8 Peak Build Rating 23 | 5 13 17 23 22 Average Rating 13 | 3 11 16 19 11 On Entrance 10 | . 5 13 16 17 Avg Prop Armor Cover (%) . | . . . . . Naked Turns . | . . . . . Heaviest Build 24 | 7 14 21 24 21 Greatest Support 48 | 32 38 38 48 48 Greatest Overweight (x) 3 | . . . . 3 Average Overweight (x) . | . . . . . Largest Inventory Capacity 5 | 5 5 5 5 5 Average Capacity 5 | 5 5 5 5 5 Most Carried 5 | 4 5 5 5 5 Average Carried 4 | 1 4 4 4 3 Final Capacity 5 | 5 5 5 5 5 Final Carried 5 | 1 5 5 4 4 Class Distribution -------------------- 44% | Mutant 24% | Tank 15% | Skirmisher 6% | Scientist-Skirmisher 4% | Scientist-Mutant 4% | Scavenger-Mutant Dominant Class ---------------- Mutant | -10/Materials Tank | -9/Materials Skirmisher | -8/Materials Mutant | -8/Garrison Resources | -11 -10 -9 -8 -8 ----------- Run | Yrd Mat Mat Mat Gar Matter Collected 1312 | 271 162 290 255 334 Remotely . | . . . . . Salvage Created 1157 | 85 198 356 288 230 Parts 73 | 1 11 18 28 15 Haulers Intercepted . | . . . . . Recyclers Shooed . | . . . . . Parts Field Recycled . | . . . . . Retrieved Matter . | . . . . . Parts Self-Destructed . | . . . . . Prevented . | . . . . . Parts Restored . | . . . . . Kills | -11 -10 -9 -8 -8 ------- Run | Yrd Mat Mat Mat Gar Combat Hostiles Destroyed 31 | . 4 10 10 7 Guns 31 | . 4 10 10 7 Classes Destroyed 8 | 1 2 2 2 1 Tunneler 1 | . . . 1 . Recycler 1 | 1 . . . . Watcher 3 | . 1 1 1 . Swarmer 14 | . . 3 8 3 Grunt 13 | . 4 5 1 3 Duelist 1 | . . . . 1 Sentry 2 | . . 2 . . Hunter 1 | . . . 1 . Best Kill Streak 10 | 1 4 5 10 2 Combat Bots Only 9 | . 3 5 9 2 Max Kills in Single Turn 2 | 1 1 1 2 1 Gunslinging 1 | . . . 1 . Exploded . | . . . . . Melee . | . . . . . Uniques/NPCs Destroyed . | . . . . . Combat | -11 -10 -9 -8 -8 -------- Run | Yrd Mat Mat Mat Gar Hostile Shots Fired 236 | . 17 27 62 130 Missed 68 | . 6 6 18 38 Hits 168 | . 11 21 44 92 Melee 6 | . . . . 6 Projectile 162 | . 11 21 44 86 AOE 1 | . 1 . . . Critical Strikes 7 | . . . . 7 Damage Taken 2114 | . 136 238 457 1283 Core 641 | . 37 54 101 449 Absorbed by Shields . | . . . . . Core Remaining (%) 90 | 100 85 86 . . Volleys Fired 114 | 5 16 23 26 44 Largest 3 | 2 2 3 3 3 Hottest 111 | 40 46 69 96 111 Shots Fired 263 | 10 32 69 77 75 Gun 263 | 10 32 69 77 75 Cannon . | . . . . . Launcher . | . . . . . Special . | . . . . . Kinetic 228 | 10 32 69 60 57 Thermal 18 | . . . . 18 Explosive . | . . . . . Electromagnetic 17 | . . . 17 . Robot Hit Streak 23 | 2 7 23 11 7 Robot Miss Streak 4 | 2 4 3 3 2 Penetration Max . | . . . . . Secondary Targets 11 | . 1 4 5 1 Max Gunslinging Chain 2 | . 1 1 2 1 Shots Hit Robots 154 | 6 14 49 35 50 Core Hits 62 | 2 7 17 16 20 Critical Kills . | . . . . . Critical Parts Destroyed 1 | . . 1 . . Critical Strikes 1 | . . 1 . . Destroy 1 | . . 1 . . Melee Attacks 3 | . . 3 . . Impact . | . . . . . Slashing . | . . . . . Piercing . | . . . . . Sneak Attacks 1 | . . 1 . . Combat Hostiles . | . . . . . Follow-up Attacks . | . . . . . Damage Inflicted 2212 | 90 194 693 574 661 Guns 2212 | 90 194 693 574 661 Cannons . | . . . . . Explosions . | . . . . . Melee . | . . . . . Ramming . | . . . . . Kinetic 1907 | 90 194 693 401 529 Thermal 132 | . . . . 132 Explosive . | . . . . . Electromagnetic 173 | . . . 173 . Impact . | . . . . . Slashing . | . . . . . Piercing . | . . . . . Highest Corruption 6 | . . 2 . 6 Average Corruption 2 | . . 2 . 4 Corruption Purged . | . . . . . Corruption Blocked . | . . . . . Effects 4 | . . 3 . 1 Matter Fused 1 | . . . . 1 Heat Flow Errors 1 | . . 1 . . Parts Fused 1 | . . 1 . . Data Loss (minor) 1 | . . 1 . . Overload Shots . | . . . . . Overflow Damage . | . . . . . Projectiles . | . . . . . Explosions . | . . . . . Melee . | . . . . . Knockbacks . | . . . . . Impact . | . . . . . Kinetic . | . . . . . Secondary . | . . . . . Self-Inflicted Damage . | . . . . . Shots . | . . . . . Rammed . | . . . . . Targets Rammed . | . . . . . Kicked . | . . . . . Crushed . | . . . . . Highest Temperature 265 | . 28 186 264 265 Average Temperature 72 | . 11 68 80 89 Received Heat Transfer 771 | . 66 93 90 522 Siege Activations . | . . . . . Martial Activations . | . . . . . Shielding Activations . | . . . . . Robots Disrupted . | . . . . . Combat Hostiles . | . . . . . Robots Corrupted . | . . . . . Combat Hostiles . | . . . . . Parts Fried 1 | . . . 1 . Impact Corruptions . | . . . . . Robots Melted . | . . . . . Combat Hostiles . | . . . . . Parts Melted . | . . . . . Heat Transferred 333 | . . . . 333 Parts Sabotaged . | . . . . . Parts Stolen . | . . . . . Parts Stripped . | . . . . . Power Chain Reactions . | . . . . . Alert | -11 -10 -9 -8 -8 ------- Run | Yrd Mat Mat Mat Gar Maximum Alert Level 1 | . . . 1 1 Low Security (%) 75 | 100 100 100 91 29 Level 1 24 | . . . 8 70 Level 2 . | . . . . . Level 3 . | . . . . . Level 4 . | . . . . . Level 5 . | . . . . . High Security . | . . . . . Max Security . | . . . . . Peak Influence 383 | 5 87 169 215 383 Initial 135 | . . 16 11 135 Average 105 | . 29 64 37 242 Influence Increases 1082 | 5 126 283 280 388 Destroy 0b10 Robot/C 640 | . 80 200 200 160 Destroy 0b10 Robot/NC 25 | 5 5 5 10 . Destroy Leader 136 | . 22 62 32 20 Allied During Kill 3 | . . . . 3 Successful Hack 78 | . 19 16 8 35 Anti-Garrison Action 50 | . . . . 50 Lose Combat Pursuer 150 | . . . 30 120 Influence Decreases 769 | 5 85 295 100 284 Entered New Map 117 | . . 25 18 74 Time Decay 272 | 5 85 120 62 . Lost Part 210 | . . . 20 190 Lost Ally 20 | . . . . 20 Purge Threat 150 | . . 150 . . Squads Dispatched 6 | . 2 3 1 . Investigation 4 | . 2 2 . . Extermination . | . . . . . Reinforcement 2 | . . 1 1 . Assault . | . . . . . Garrison . | . . . . . Intercept . | . . . . . Searches Triggered . | . . . . . Construction Impeded . | . . . . . Haulers Reinforced . | . . . . . Active Scanning Responses . | . . . . . Cargo Convoy Interrupts . | . . . . . Stealth | -11 -10 -9 -8 -8 --------- Run | Yrd Mat Mat Mat Gar Distress Signals 1 | . . 1 . . Communications Jammed . | . . . . . Distress Signals . | . . . . . Times Spotted 54 | . 8 12 14 20 Peak Tracking Total 6 | . 4 5 6 6 Tactical Retreats 6 | . . . 1 5 Traps | -11 -10 -9 -8 -8 ------- Run | Yrd Mat Mat Mat Gar Traps Triggered 3 | . . 1 . 2 Indirectly . | . . . . . Trap Hack Attempts . | . . . . . Triggered . | . . . . . Disarmed . | . . . . . Reprogrammed . | . . . . . Reused . | . . . . . Traps Extracted . | . . . . . Installed . | . . . . . Triggered . | . . . . . Machines | -11 -10 -9 -8 -8 ---------- Run | Yrd Mat Mat Mat Gar Machines Disabled 1 | . . . . 1 Max in Single Turn 1 | . . . . 1 Garrison Relay 2 | . . . . 2 Machines Repaired . | . . . . . Machines Dismantled . | . . . . . Machines Sabotaged . | . . . . . Overloaded Fab Kills . | . . . . . Hacking | -11 -10 -9 -8 -8 --------- Run | Yrd Mat Mat Mat Gar Machines Accessed 15 | . 4 6 2 3 Terminals 11 | . 4 4 . 3 Fabricators . | . . . . . Repair Stations . | . . . . . Recycling Units 1 | . . 1 . . Scanalyzers 2 | . . 1 1 . Garrison Access 1 | . . . 1 . Total Hacks 41 | . 17 16 5 3 Successful 22 | . 8 7 4 3 Failed 19 | . 9 9 1 . Catastrophic . | . . . . . Database Lockouts . | . . . . . Manual . | . . . . . Terminals 28 | . 17 8 . 3 Fabricators . | . . . . . Repair Stations . | . . . . . Recycling Units 2 | . . 2 . . Scanalyzers 9 | . . 6 3 . Garrison Access 2 | . . . 2 . Terminal Hacks 14 | . 8 3 . 3 Prototype ID Bank 1 | . 1 . . . Open Door 1 | . . . . 1 Branch Access Points 1 | . 1 . . . Emergency Access Points 2 | . 1 . . 1 Terminal Index 1 | . . 1 . . Recycling Unit Index 1 | . 1 . . . Alert Level 1 | . 1 . . . Unreport Threat 1 | . . 1 . . Dispatch Records 1 | . 1 . . . Hauler Manifests 1 | . 1 . . . Zone Layout 2 | . 1 1 . . Garrison Registry 1 | . . . . 1 Fabricator Hacks . | . . . . . Repair Station Hacks . | . . . . . Recycling Unit Hacks . | . . . . . Scanalyzer 7 | . . 4 3 . Retrieve Study 7 | . . 4 3 . Garrison Access Hacks 1 | . . . 1 . Unlock Access 1 | . . . 1 . Unauthorized Hacks . | . . . . . Terminals . | . . . . . Fabricators . | . . . . . Repair Stations . | . . . . . Recycling Units . | . . . . . Scanalyzers . | . . . . . Garrison Access . | . . . . . Data Cores Recovered . | . . . . . Used . | . . . . . Hacking Detections 11 | . 3 6 1 1 Full Trace Events 5 | . 3 2 . . Feedback Events . | . . . . . Feedback Blocked . | . . . . . Robot Schematics Acquired . | . . . . . Robots Built . | . . . . . Authchips . | . . . . . Time . | . . . . . Total Robot Build Rating . | . . . . . Part Schematics Acquired . | . . . . . Parts Built . | . . . . . Authchips . | . . . . . Time . | . . . . . Total Part Build Rating . | . . . . . Part Studies Acquired 7 | . . 4 3 . Parts Repaired . | . . . . . Time . | . . . . . Parts Recycled . | . . . . . Recycled Matter . | . . . . . Retrieved Matter . | . . . . . Retrieved Components . | . . . . . Parts Scanalyzed . | . . . . . Part Schematics Acquired . | . . . . . Parts Damaged . | . . . . . Bothacking | -11 -10 -9 -8 -8 ------------ Run | Yrd Mat Mat Mat Gar Used RIF Installer . | . . . . . Robots Hacked 2 | . . 2 . . Non-combat 1 | . . 1 . . Combat 1 | . . 1 . . Robot Hacks Applied 2 | . . 2 . . parse_system 2 | . . 2 . . Relay Couplers Released 7 | . . . . 7 Machine Destruction 7 | . . . . 7 Fabnet Peak Effective % . | . . . . . Robots Rewired . | . . . . . Allies Hacked . | . . . . . Hacks Repelled . | . . . . . Allies | -11 -10 -9 -8 -8 -------- Run | Yrd Mat Mat Mat Gar Total Allies 2 | . . . . 2 Largest Group 2 | . . . . 2 Highest-Rated Group 51 | . . . . 51 Highest-Rated Ally 31 | . . . . 31 Total Orders . | . . . . . Ally Attacks 6 | . . . . 6 Total Damage 136 | . . . . 136 Kills 2 | . . . . 2 Allies Corrupted . | . . . . . Allies Melted . | . . . . . Intel | -11 -10 -9 -8 -8 ------- Run | Yrd Mat Mat Mat Gar Active Infowar (turns) 940 | . 99 244 231 366 Optics 940 | . 99 244 231 366 Sensors 124 | . . . 124 . Terrain 270 | . . . 188 82 Robot Analysis Total . | . . . . . Derelict Logs Recovered . | . . . . . Drone Launches . | . . . . . Drone Recoveries . | . . . . . Exploration | -11 -10 -9 -8 -8 ------------- Run | Yrd Mat Mat Mat Gar Turns Passed 1164 | 72 243 244 231 374 Spaces Moved 901 | 52 184 180 156 329 Core 204 | 11 . . . 193 Treads . | . . . . . Legs . | . . . . . Wheels 667 | 41 184 180 156 106 Hover . | . . . . . Flight 30 | . . . . 30 Fastest Speed 37 | 50 100 90 90 37 Average Speed 83 | 83 100 93 90 64 Slowest Speed 200 | 100 100 100 90 200 Overloaded Moves . | . . . . . Propulsion Burnouts . | . . . . . Robots Hopped . | . . . . . Potential Cave-ins . | . . . . . Cave-ins Triggered . | . . . . . Exploration Rate (%) 27 | 4 33 25 13 61 Regions Visited 4 Branch Regions . Pre-discovered Areas . | . . . . . Known Exits Taken 1 | . . . 1 . Unknown Exits Taken 3 | 1 1 1 . . Scrap Searched . | . . . . . Spaces Dug . | . . . . . Terrain Destroyed . | . . . . . Melee . | . . . . . Projectile . | . . . . . AOE . | . . . . . Terrain Rammed . | . . . . . Walls Destroyed . | . . . . . Machines Disabled . | . . . . . Actions | -11 -10 -9 -8 -8 --------- Run | Yrd Mat Mat Mat Gar Total 1132 | 70 218 214 201 429 Wait 14 | . 1 . . 13 Move 898 | 51 183 179 156 329 Hop . | . . . . . Pick Up 33 | 7 7 3 6 10 Fast Attach 2 | . . . . 2 Attach 25 | 5 3 2 5 10 Detach . | . . . . . Swap 14 | 1 4 3 3 3 Drop 12 | 1 4 1 5 1 Fire 114 | 5 16 23 26 44 Melee 3 | . . 3 . . Ram . | . . . . . Kick . | . . . . . Crush . | . . . . . Escape Stasis 17 | . . . . 17 Rewire . | . . . . . Trap . | . . . . . Miscellaneous . | . . . . . Route ------- -11/Scrapyard -10/Materials (discovered 3 exits: *Mat x2 / Min) -9/Materials -8/Materials -8/Garrison (discovered 4 exits: [*Mat x4]) History --------- Turn | Location | Event 5 | -11/Scrapyard | Discovered new exit (range 15) 73 | -11/Scrapyard | Entered Materials 112 | -10/Materials | Discovered new exit (range 17) 210 | -10/Materials | Identified exit to Mines 235 | -10/Materials | Discovered new exit (range 15) 313 | -10/Materials | Build established: Mutant 316 | -10/Materials | Entered another Materials area 316 | -9/Materials | Evolved 2 slots: Utility x1, Weapon x1 535 | -9/Materials | Discovered new exit (range 5) 560 | -9/Materials | Entered another Materials area 560 | -8/Materials | Evolved 2 slots: Power x1, Propulsion x1 784 | -8/Materials | Lost 3 parts (1p1u1w) 791 | -8/Materials | Identified exit to Garrison 791 | -8/Materials | Entered Garrison 793 | -8/Garrison | Destroyed 9 combat bots 825 | -8/Garrison | Triggered checkpoint 867 | -8/Garrison | Garrison Relay disabled 869 | -8/Garrison | Lost 3 parts (1p2w) 933 | -8/Garrison | Triggered checkpoint 959 | -8/Garrison | Core integrity fell below 50% 969 | -8/Garrison | Discovered new exit (range 13) 975 | -8/Garrison | Discovered new exit (range 12) 975 | -8/Garrison | Discovered new exit (range 51) 975 | -8/Garrison | Discovered new exit (range 42) 975 | -8/Garrison | Discovered new exit (range 62) 987 | -8/Garrison | Lost 8 parts (1p3n1u3w) 1003 | -8/Garrison | Triggered checkpoint 1021 | -8/Garrison | Rescued a captive Derelict 1021 | -8/Garrison | Rescued a captive Derelict 1087 | -8/Garrison | Core integrity fell below 20% 1139 | -8/Garrison | Triggered checkpoint 1150 | -8/Garrison | Garrison Relay disabled 1165 | -8/Garrison | Destroyed by B-36 Bruiser with Hammer Last Messages --------------- 01150_ Garrison Relay disabled. 01150_ Relay Coupler [Swarmer] tumbles out of relay unit. 01150_ Relay Coupler [Demolisher] tumbles out of relay unit. 01150_ Relay Coupler [Hunter] tumbles out of relay unit. 01150_ Relay Coupler [Grunt] tumbles out of relay unit. 01154_ Flight Unit destroyed. 01157_ Adv. Visual Processing Unit destroyed. 01157_ System corrupted by crushing effect (+3). 01161_ Lgt. Ion Engine+ destroyed. 01162_ Imp. Heat Sink destroyed. 01162_ Lgt. Assault Rifle destroyed. 01162_ System corrupted by crushing effect (+2). 01162_ System corrupted by crushing effect (+1). 01163_ System corrupted: Matter fused (-6). 01163_ Lgt. Assault Rifle destroyed. 01164_ Slug penetrates Reinforced Barrier. Map ----- +----------------------------------------------------+ | ?# #??????????????????# # #??????? | | ?# #??????????????????# + #??????? | | ?# #??????????????????# ####??????? | | ?# #??????????????????# #?????????? | | ?# #??????????????????# #?????????? | | ?# #??????????????????# #?????????? | | ?# #??????????????????# #?????????? | | ?# #??????????????????# #?????????? | | ?# #??????????????????# #?????????? | | ?# #??????????????????# #?????????? | | ?# ############???????# #?????????? | | ?# + #???????# #?????????? | | ?# ########## #???????# #######???? | | ?# #???????##+##??????# #^""""#???? | | ?# #???????# #??????# ^ "#???? | | ?# ######### < ########++#^""""#???? | | ?# * #######???? | | ?# #?????????? | | ?####################### #?????????? | | ???????????????????????# #?????????? | | ?????????????????????### #?????????? | | ?????????????????????#C% #?????????? | | ?????????????????????# #?????????? | | ?????????????????????#C #?????????? | | ?????????????????????###hg###???????? | | ???????????????????????# @#"#???????? | | ???????????????????????#bg #???????? | | ???????????????????????# "#???????? | | ???????????????????????# !!"#???????? | | ???????????????????????# !#!#???????? | | ???????????????????????######???????? | | ????????????????????????????????????? | | ????????????????????????????????????? | | ????????????????????????????????????? | | ????????????????????????????????????? | | ????????????????????????????????????? | | ????????????????????????????????????? | | ????????????????????????????????????? | | ????????????????????????????????????? | | ????????????????????????????????????? | | ????????????????????????????????????? | | | | | | | | | | | | | | | | | | | +----------------------------------------------------+ Best States ------------- Heat Dissipation 45 Coolant Potential 50 Energy Generation 24 Energy Capacity 320 Matter Stores 300 Matter Capacity 300 Sight Range 20 Robot Scan Range 15 Terrain Scan Range 14 Terrain Scan Density 10 Additional Mass Support 6 Armor Coverage 150 Evasion (%) 62 Item Schematics ----------------- None Robot Schematics ------------------ None Fabricated ------------ Nothing Repaired ---------- Nothing Studied --------- Autogun | -9/Materials | Hacked Com. Wheel | -9/Materials | Hacked Lgt. Ion Engine | -9/Materials | Hacked Ion Engine | -9/Materials | Hacked Datajack | -8/Materials | Hacked Shock Rifle | -8/Materials | Hacked Lgt. Deuterium Engine | -8/Materials | Hacked Alien Tech Used ----------------- None Achievements -------------- None Challenges ------------ None Game ------ Seed SurveybotScrapAutocannon Manual? 0 Play Time 00:19:28 Cumulative 13.2 hours Start 2026.01.31 @ 01:43:51 End 2026.01.31 @ 02:02:41 Sessions 1 Manual Loads 0 Difficulty Rogue Special Mode None Game No. 7 Rogue 2 Adventurer 5 Explorer 0 Win Type - Total 0 Types 0/0/0/0/0/0/0/0/0/0 Lore% 12 Gallery% 17 Achievement% 16 Wizard Run 0 Options --------- Layout 1 ASCII 0 Keyboard 0 Movement Mouse Keybinds 0 Fullscreen 2 Font 24/Smallcaps Map View 50x35 Zoom Use 0% Tactical HUD 1 Map Filters NONE Filters NONE Steam 1 RUN: ee086800-6540-4d80-b6f0-6a2b79aab9ab